[Event "Titled Tuesday Blitz January 10 Late 2023"]
[White "Musovic, Armin"]
[Black "Goryachkina, Aleksandra"]
[WhiteFideId "939935"]
[BlackFideId "4147103"]
[WhiteElo "2261"]
[BlackElo "2571"]
[Result "0-1"]
[Round "05"]
[TimeControl "180+2"]
[Date "2023.01.10"]
[WhiteClock "0:00:27"]
[BlackClock "0:00:07"]

1. a3 {[%clk 0:00:00]}  c5 {[%clk 0:00:00]} 2. Nc3 {[%clk 0:03:00]}  Nc6 {[%clk 0:02:55]} 3. e4 {[%clk 0:02:59]}  e6 {[%clk 0:02:54]} 4. Bc4 {[%clk 0:03:00]}  Nf6 {[%clk 0:02:53]} 5. d3 {[%clk 0:03:00]}  d5 {[%clk 0:02:51]} 6. exd5 {[%clk 0:03:01]}  exd5 {[%clk 0:02:51]} 7. Ba2 {[%clk 0:03:02]}  Be7 {[%clk 0:02:52]} 8. Nge2 {[%clk 0:03:02]}  O-O {[%clk 0:02:52]} 9. O-O {[%clk 0:03:02]}  d4 {[%clk 0:02:52]} 10. Ne4 {[%clk 0:03:03]}  Nxe4 {[%clk 0:02:39]} 11. dxe4 {[%clk 0:02:59]}  Be6 {[%clk 0:02:39]} 12. Bxe6 {[%clk 0:03:00]}  fxe6 {[%clk 0:02:39]} 13. Nf4 {[%clk 0:02:58]}  Qd7 {[%clk 0:02:40]} 14. Qg4 {[%clk 0:02:51]}  Bd6 {[%clk 0:02:37]} 15. Nh5 {[%clk 0:02:49]}  Ne5 {[%clk 0:02:17]} 16. Qh3 {[%clk 0:02:23]}  c4 {[%clk 0:02:02]} 17. f4 {[%clk 0:02:23]}  Ng6 {[%clk 0:01:55]} 18. f5 {[%clk 0:02:20]}  exf5 {[%clk 0:01:55]} 19. exf5 {[%clk 0:02:17]}  d3 {[%clk 0:01:51]} 20. cxd3 {[%clk 0:02:18]}  Bc5+ {[%clk 0:01:29]} 21. Kh1 {[%clk 0:02:08]}  cxd3 {[%clk 0:01:24]} 22. Bg5 {[%clk 0:02:03]}  Ne5 {[%clk 0:01:15]} 23. Rad1 {[%clk 0:01:58]}  Bd4 {[%clk 0:01:01]} 24. f6 {[%clk 0:01:57]}  Qxh3 {[%clk 0:00:57]} 25. gxh3 {[%clk 0:01:36]}  gxf6 {[%clk 0:00:52]} 26. Bxf6 {[%clk 0:01:37]}  Rac8 {[%clk 0:00:22]} 27. Rf4 {[%clk 0:01:30]}  Bxb2 {[%clk 0:00:18]} 28. Rg1+ {[%clk 0:01:22]}  Ng6 {[%clk 0:00:07]} 29. Bxb2 {[%clk 0:01:20]}  Rc2 {[%clk 0:00:05]} 30. Rb4 {[%clk 0:01:21]}  d2 {[%clk 0:00:02]} 31. Rxb7 {[%clk 0:01:14]}  Rf7 {[%clk 0:00:02]} 32. Rb8+ {[%clk 0:01:15]}  Rf8 {[%clk 0:00:02]} 33. Nf6+ {[%clk 0:01:06]}  Kf7 {[%clk 0:00:02]} 34. Rb7+ {[%clk 0:01:04]}  Ke6 {[%clk 0:00:02]} 35. Nxh7 {[%clk 0:01:05]}  Rf2 {[%clk 0:00:03]} 36. Rxg6+ {[%clk 0:01:05]}  Kd5 {[%clk 0:00:02]} 37. Rg5+ {[%clk 0:01:01]}  Kc4 {[%clk 0:00:03]} 38. Rc7+ {[%clk 0:00:55]}  Kb3 {[%clk 0:00:03]} 39. Rb7+ {[%clk 0:00:54]}  Ka2 {[%clk 0:00:03]} 40. Rg1 {[%clk 0:00:45]}  Rxh2+ {[%clk 0:00:03]} 41. Kxh2 {[%clk 0:00:37]}  d1=Q+ {[%clk 0:00:03]} 42. Rg2 {[%clk 0:00:36]}  Rxg2+ {[%clk 0:00:03]} 43. Kxg2 {[%clk 0:00:37]}  Qd5+ {[%clk 0:00:03]} 44. Kg3 {[%clk 0:00:38]}  Qxb7 {[%clk 0:00:03]} 45. Bf6 {[%clk 0:00:37]}  Qxh7 {[%clk 0:00:04]} 46. h4 {[%clk 0:00:35]}  Qg6+ {[%clk 0:00:04]} 47. Bg5 {[%clk 0:00:36]}  Kxa3 {[%clk 0:00:04]} 48. Kg4 {[%clk 0:00:37]}  Qe6+ {[%clk 0:00:05]} 49. Kf4 {[%clk 0:00:37]}  Qf7+ {[%clk 0:00:05]} 50. Kg4 {[%clk 0:00:37]}  Qc4+ {[%clk 0:00:05]} 51. Kf5 {[%clk 0:00:37]}  Qe2 {[%clk 0:00:05]} 52. Kg6 {[%clk 0:00:38]}  Qd3+ {[%clk 0:00:03]} 53. Kg7 {[%clk 0:00:37]}  Qd1 {[%clk 0:00:04]} 54. Kg6 {[%clk 0:00:36]}  Qc2+ {[%clk 0:00:03]} 55. Kg7 {[%clk 0:00:34]}  Qc7+ {[%clk 0:00:04]} 56. Kg6 {[%clk 0:00:34]}  Qc6+ {[%clk 0:00:04]} 57. Kg7 {[%clk 0:00:34]}  Qd7+ {[%clk 0:00:05]} 58. Kg6 {[%clk 0:00:34]}  Qe8+ {[%clk 0:00:05]} 59. Kh6 {[%clk 0:00:35]}  a5 {[%clk 0:00:05]} 60. h5 {[%clk 0:00:33]}  a4 {[%clk 0:00:06]} 61. Bf6 {[%clk 0:00:30]}  Kb3 {[%clk 0:00:06]} 62. Kg5 {[%clk 0:00:30]}  Qg8+ {[%clk 0:00:05]} 63. Kf5 {[%clk 0:00:29]}  Qf8 {[%clk 0:00:05]} 64. Kg6 {[%clk 0:00:29]}  a3 {[%clk 0:00:05]} 65. h6 {[%clk 0:00:28]}  a2 {[%clk 0:00:05]} 66. Bg7 {[%clk 0:00:29]}  Qe8+ {[%clk 0:00:05]} 67. Kh7 {[%clk 0:00:26]}  Qf7 {[%clk 0:00:03]} 68. Kh8 {[%clk 0:00:25]}  Qxg7+ {[%clk 0:00:03]} 69. Kxg7 {[%clk 0:00:25]}  a1=Q+ {[%clk 0:00:03]} 70. Kg8 {[%clk 0:00:24]}  Qa8+ {[%clk 0:00:03]} 71. Kg7 {[%clk 0:00:25]}  Qb7+ {[%clk 0:00:03]} 72. Kg8 {[%clk 0:00:25]}  Qc8+ {[%clk 0:00:04]} 73. Kg7 {[%clk 0:00:26]}  Qd7+ {[%clk 0:00:04]} 74. Kg8 {[%clk 0:00:26]}  Qe8+ {[%clk 0:00:05]} 75. Kg7 {[%clk 0:00:27]}  Qe7+ {[%clk 0:00:05]} 76. Kg8 {[%clk 0:00:28]}  Qe6+ {[%clk 0:00:06]} 77. Kg7 {[%clk 0:00:28]}  Qg4+ {[%clk 0:00:06]} 78. Kf6 {[%clk 0:00:29]}  Qh5 {[%clk 0:00:06]} 79. Kg7 {[%clk 0:00:28]}  Qg5+ {[%clk 0:00:06]} 80. Kh7 {[%clk 0:00:27]}  Kc4 {[%clk 0:00:07]} 0-1


[Site "https://www.chess.com"]

[Event "Titled Tuesday Blitz January 10 Late 2023"]
[White "Domingo Nunez, Ruben"]
[Black "TheKnightOfBosnia"]
[WhiteFideId "22245570"]
[WhiteElo "2416"]
[BlackElo "2537"]
[Result "1-0"]
[Round "05"]
[TimeControl "180+2"]
[Date "2023.01.10"]
[WhiteClock "0:00:44"]
[BlackClock "0:00:04"]

1. c4 {[%clk 0:00:00]}  Nf6 {[%clk 0:00:00]} 2. b3 {[%clk 0:03:00]}  g6 {[%clk 0:02:58]} 3. Bb2 {[%clk 0:02:56]}  Bg7 {[%clk 0:02:58]} 4. Nf3 {[%clk 0:02:52]}  O-O {[%clk 0:02:58]} 5. g3 {[%clk 0:02:53]}  b6 {[%clk 0:02:58]} 6. Bg2 {[%clk 0:02:53]}  Bb7 {[%clk 0:02:57]} 7. O-O {[%clk 0:02:53]}  e6 {[%clk 0:02:58]} 8. d4 {[%clk 0:02:54]}  d5 {[%clk 0:02:59]} 9. Ne5 {[%clk 0:02:55]}  Nbd7 {[%clk 0:02:59]} 10. Nc3 {[%clk 0:02:53]}  Qe7 {[%clk 0:02:58]} 11. Nb5 {[%clk 0:02:47]}  Nxe5 {[%clk 0:02:47]} 12. dxe5 {[%clk 0:02:45]}  Ne4 {[%clk 0:02:36]} 13. Bxe4 {[%clk 0:02:46]}  dxe4 {[%clk 0:02:37]} 14. Ba3 {[%clk 0:02:15]}  c5 {[%clk 0:02:37]} 15. Bb2 {[%clk 0:02:16]}  Rfd8 {[%clk 0:02:31]} 16. Qc1 {[%clk 0:02:16]}  Bc6 {[%clk 0:02:28]} 17. Qf4 {[%clk 0:02:11]}  Bxb5 {[%clk 0:02:18]} 18. cxb5 {[%clk 0:02:05]}  Rd5 {[%clk 0:02:18]} 19. Qxe4 {[%clk 0:02:05]}  Rad8 {[%clk 0:02:18]} 20. Bc3 {[%clk 0:02:05]}  Qc7 {[%clk 0:02:18]} 21. f4 {[%clk 0:02:03]}  Qd7 {[%clk 0:02:16]} 22. a4 {[%clk 0:02:01]}  h5 {[%clk 0:02:16]} 23. h4 {[%clk 0:02:00]}  Bf8 {[%clk 0:02:11]} 24. Qc2 {[%clk 0:01:59]}  Qb7 {[%clk 0:02:04]} 25. Rad1 {[%clk 0:01:57]}  Rxd1 {[%clk 0:01:57]} 26. Rxd1 {[%clk 0:01:54]}  Rd5 {[%clk 0:01:44]} 27. Kf2 {[%clk 0:01:54]}  Qd7 {[%clk 0:01:41]} 28. Rd3 {[%clk 0:01:50]}  Qb7 {[%clk 0:01:37]} 29. e4 {[%clk 0:01:50]}  Rd7 {[%clk 0:01:32]} 30. Qd2 {[%clk 0:01:42]}  Rc7 {[%clk 0:01:23]} 31. Kf3 {[%clk 0:01:40]}  c4 {[%clk 0:01:21]} 32. Rd8 {[%clk 0:01:23]}  Kg7 {[%clk 0:01:20]} 33. Bb4 {[%clk 0:01:24]}  Bxb4 {[%clk 0:01:16]} 34. Qxb4 {[%clk 0:01:10]}  Rc5 {[%clk 0:00:24]} 35. bxc4 {[%clk 0:01:11]}  Qc7 {[%clk 0:00:23]} 36. Rd4 {[%clk 0:01:07]}  Kg8 {[%clk 0:00:23]} 37. Ke3 {[%clk 0:01:08]}  Kg7 {[%clk 0:00:20]} 38. Kd3 {[%clk 0:01:07]}  Kh7 {[%clk 0:00:19]} 39. Kc3 {[%clk 0:01:08]}  Kg7 {[%clk 0:00:19]} 40. Kb3 {[%clk 0:01:08]}  Kh7 {[%clk 0:00:18]} 41. Qd2 {[%clk 0:01:09]}  Kg7 {[%clk 0:00:18]} 42. Rd7 {[%clk 0:01:09]}  Qc8 {[%clk 0:00:17]} 43. Rd4 {[%clk 0:01:10]}  Qc7 {[%clk 0:00:15]} 44. Qd3 {[%clk 0:01:04]}  Qc8 {[%clk 0:00:15]} 45. Rd6 {[%clk 0:01:05]}  Qc7 {[%clk 0:00:14]} 46. Rd7 {[%clk 0:01:02]}  Qc8 {[%clk 0:00:14]} 47. Rxa7 {[%clk 0:00:59]}  Qb8 {[%clk 0:00:13]} 48. Qd7 {[%clk 0:00:58]}  Qf8 {[%clk 0:00:09]} 49. Qxe6 {[%clk 0:00:57]}  Kg8 {[%clk 0:00:09]} 50. Qxb6 {[%clk 0:00:55]}  Qc8 {[%clk 0:00:06]} 51. Qa6 {[%clk 0:00:49]}  Qd8 {[%clk 0:00:04]} 52. Ra8 {[%clk 0:00:44]} 1-0


[Site "https://www.chess.com"]

[Event "Titled Tuesday Blitz January 10 Late 2023"]
[White "Skvortsov, Andrei"]
[Black "gshwbedhkhd"]
[WhiteFideId "24108600"]
[WhiteElo "2313"]
[BlackElo "2527"]
[Result "1-0"]
[Round "05"]
[TimeControl "180+2"]
[Date "2023.01.10"]
[WhiteClock "0:00:09"]
[BlackClock "0:00:03"]

1. d4 {[%clk 0:00:00]}  f5 {[%clk 0:00:00]} 2. g3 {[%clk 0:03:00]}  Nf6 {[%clk 0:02:59]} 3. Bg2 {[%clk 0:02:49]}  g6 {[%clk 0:02:59]} 4. Nd2 {[%clk 0:02:48]}  Bg7 {[%clk 0:03:00]} 5. e4 {[%clk 0:02:48]}  fxe4 {[%clk 0:02:59]} 6. Nxe4 {[%clk 0:02:48]}  Nxe4 {[%clk 0:02:59]} 7. Bxe4 {[%clk 0:02:48]}  O-O {[%clk 0:02:58]} 8. Ne2 {[%clk 0:02:49]}  c6 {[%clk 0:02:59]} 9. O-O {[%clk 0:02:49]}  d5 {[%clk 0:02:54]} 10. Bg2 {[%clk 0:02:45]}  e5 {[%clk 0:02:50]} 11. dxe5 {[%clk 0:02:45]}  Bxe5 {[%clk 0:02:47]} 12. c3 {[%clk 0:02:45]}  Bg4 {[%clk 0:02:48]} 13. f3 {[%clk 0:02:43]}  Bf5 {[%clk 0:02:44]} 14. Bf4 {[%clk 0:02:38]}  Nd7 {[%clk 0:02:41]} 15. Qd2 {[%clk 0:02:35]}  Bg7 {[%clk 0:02:38]} 16. Nd4 {[%clk 0:02:25]}  Nb6 {[%clk 0:02:30]} 17. Nxf5 {[%clk 0:02:22]}  Rxf5 {[%clk 0:02:23]} 18. Bh3 {[%clk 0:02:02]}  Nc4 {[%clk 0:02:24]} 19. Qf2 {[%clk 0:01:56]}  Rf8 {[%clk 0:02:18]} 20. Rae1 {[%clk 0:01:52]}  Qb6 {[%clk 0:02:14]} 21. b3 {[%clk 0:01:48]}  Qxf2+ {[%clk 0:02:11]} 22. Rxf2 {[%clk 0:01:36]}  Nb6 {[%clk 0:02:05]} 23. Bd2 {[%clk 0:01:34]}  Rae8 {[%clk 0:01:53]} 24. Rxe8 {[%clk 0:01:31]}  Rxe8 {[%clk 0:01:50]} 25. Kf1 {[%clk 0:01:23]}  Kf7 {[%clk 0:01:50]} 26. Re2 {[%clk 0:01:24]}  Rxe2 {[%clk 0:01:38]} 27. Kxe2 {[%clk 0:01:23]}  Bf6 {[%clk 0:01:30]} 28. Kd3 {[%clk 0:01:24]}  Ke7 {[%clk 0:01:30]} 29. a4 {[%clk 0:01:16]}  Nd7 {[%clk 0:01:29]} 30. f4 {[%clk 0:01:11]}  Nc5+ {[%clk 0:01:27]} 31. Kc2 {[%clk 0:01:09]}  Ne4 {[%clk 0:01:26]} 32. Be1 {[%clk 0:01:08]}  Kd6 {[%clk 0:01:26]} 33. Bg2 {[%clk 0:01:06]}  Nc5 {[%clk 0:01:24]} 34. Bf2 {[%clk 0:01:07]}  b6 {[%clk 0:01:22]} 35. g4 {[%clk 0:01:03]}  Ne6 {[%clk 0:01:18]} 36. Bg3 {[%clk 0:00:54]}  Ke7 {[%clk 0:01:15]} 37. f5 {[%clk 0:00:50]}  gxf5 {[%clk 0:01:11]} 38. gxf5 {[%clk 0:00:44]}  Ng7 {[%clk 0:01:05]} 39. Bb8 {[%clk 0:00:43]}  Nxf5 {[%clk 0:01:06]} 40. Bh3 {[%clk 0:00:44]}  Nd6 {[%clk 0:01:05]} 41. Bxa7 {[%clk 0:00:39]}  d4 {[%clk 0:00:54]} 42. Bxb6 {[%clk 0:00:36]}  dxc3 {[%clk 0:00:44]} 43. a5 {[%clk 0:00:29]}  Nb5 {[%clk 0:00:44]} 44. Bc5+ {[%clk 0:00:25]}  Kd8 {[%clk 0:00:43]} 45. Kd3 {[%clk 0:00:23]}  Kc7 {[%clk 0:00:40]} 46. Bg2 {[%clk 0:00:16]}  Kb7 {[%clk 0:00:33]} 47. Be4 {[%clk 0:00:11]}  h5 {[%clk 0:00:30]} 48. Bf3 {[%clk 0:00:10]}  h4 {[%clk 0:00:29]} 49. h3 {[%clk 0:00:10]}  Ka6 {[%clk 0:00:29]} 50. Bxc6 {[%clk 0:00:10]}  Kxa5 {[%clk 0:00:24]} 51. Bd7 {[%clk 0:00:09]}  Nc7 {[%clk 0:00:21]} 52. Kc2 {[%clk 0:00:07]}  Ka6 {[%clk 0:00:17]} 53. Bf5 {[%clk 0:00:06]}  Nd5 {[%clk 0:00:17]} 54. Be4 {[%clk 0:00:06]}  Nf4 {[%clk 0:00:16]} 55. Bf5 {[%clk 0:00:06]}  Kb5 {[%clk 0:00:14]} 56. Be3 {[%clk 0:00:04]}  Nd5 {[%clk 0:00:15]} 57. Kd3 {[%clk 0:00:04]}  Nb4+ {[%clk 0:00:14]} 58. Ke2 {[%clk 0:00:05]}  Kc6 {[%clk 0:00:14]} 59. Be4+ {[%clk 0:00:05]}  Kd6 {[%clk 0:00:13]} 60. Bf4+ {[%clk 0:00:05]}  Be5 {[%clk 0:00:13]} 61. Be3 {[%clk 0:00:05]}  Nd5 {[%clk 0:00:12]} 62. Bxd5 {[%clk 0:00:05]}  Kxd5 {[%clk 0:00:07]} 63. Kd3 {[%clk 0:00:05]}  Kc6 {[%clk 0:00:08]} 64. Bf2 {[%clk 0:00:06]}  Kb5 {[%clk 0:00:07]} 65. Bxh4 {[%clk 0:00:05]}  Kb4 {[%clk 0:00:07]} 66. Kc2 {[%clk 0:00:06]}  Bd4 {[%clk 0:00:06]} 67. Be1 {[%clk 0:00:07]}  Bg7 {[%clk 0:00:05]} 68. h4 {[%clk 0:00:08]}  Bh8 {[%clk 0:00:04]} 69. h5 {[%clk 0:00:07]}  Bf6 {[%clk 0:00:05]} 70. h6 {[%clk 0:00:07]}  Bh8 {[%clk 0:00:05]} 71. h7 {[%clk 0:00:06]}  Bf6 {[%clk 0:00:06]} 72. Bg3 {[%clk 0:00:07]}  Bh8 {[%clk 0:00:06]} 73. Bd6+ {[%clk 0:00:07]}  Kb5 {[%clk 0:00:06]} 74. Kd3 {[%clk 0:00:08]}  Kc6 {[%clk 0:00:06]} 75. Bf4 {[%clk 0:00:07]}  Kb5 {[%clk 0:00:06]} 76. Kc2 {[%clk 0:00:07]}  Kb4 {[%clk 0:00:05]} 77. Be3 {[%clk 0:00:08]}  Kb5 {[%clk 0:00:05]} 78. Kb1 {[%clk 0:00:05]}  Ka5 {[%clk 0:00:05]} 79. Ka2 {[%clk 0:00:06]}  Kb4 {[%clk 0:00:04]} 80. Bf4 {[%clk 0:00:06]}  c2 {[%clk 0:00:03]} 81. Bd2+ {[%clk 0:00:05]}  Kc5 {[%clk 0:00:03]} 82. b4+ {[%clk 0:00:05]}  Kc4 {[%clk 0:00:03]} 83. Ka3 {[%clk 0:00:04]}  Bg7 {[%clk 0:00:03]} 84. Ka4 {[%clk 0:00:04]}  Bh8 {[%clk 0:00:02]} 85. Bc1 {[%clk 0:00:03]}  Kd3 {[%clk 0:00:02]} 86. b5 {[%clk 0:00:03]}  Ke2 {[%clk 0:00:02]} 87. b6 {[%clk 0:00:04]}  Kd1 {[%clk 0:00:02]} 88. Bg5 {[%clk 0:00:04]}  Bf6 {[%clk 0:00:03]} 89. Bh6 {[%clk 0:00:05]}  Bg7 {[%clk 0:00:02]} 90. Bf4 {[%clk 0:00:04]}  Be5 {[%clk 0:00:02]} 91. Bxe5 {[%clk 0:00:05]}  c1=Q {[%clk 0:00:02]} 92. h8=Q {[%clk 0:00:05]}  Qc2+ {[%clk 0:00:02]} 93. Kb5 {[%clk 0:00:05]}  Qb3+ {[%clk 0:00:02]} 94. Kc6 {[%clk 0:00:06]}  Qc4+ {[%clk 0:00:02]} 95. Kd7 {[%clk 0:00:07]}  Qd5+ {[%clk 0:00:02]} 96. Kc7 {[%clk 0:00:08]}  Qc5+ {[%clk 0:00:03]} 97. Kb7 {[%clk 0:00:08]}  Qd5+ {[%clk 0:00:03]} 98. Kb8 {[%clk 0:00:09]}  Qe6 {[%clk 0:00:03]} 99. Bc7 {[%clk 0:00:09]} 1-0


[Site "https://www.chess.com"]

[Event "Titled Tuesday Blitz January 10 Late 2023"]
[White "Vlassov, Nikolai"]
[Black "Arencibia Monduy, Antonio"]
[WhiteFideId "4103360"]
[BlackFideId "3507939"]
[WhiteElo "2283"]
[BlackElo "2122"]
[Result "1-0"]
[Round "05"]
[TimeControl "180+2"]
[Date "2023.01.10"]
[WhiteClock "0:00:05"]
[BlackClock "0:00:06"]

1. e4 {[%clk 0:00:00]}  d6 {[%clk 0:00:00]} 2. f4 {[%clk 0:03:00]}  c6 {[%clk 0:03:00]} 3. Nf3 {[%clk 0:03:00]}  Qc7 {[%clk 0:03:00]} 4. Nc3 {[%clk 0:03:00]}  e5 {[%clk 0:03:01]} 5. d4 {[%clk 0:02:59]}  Bg4 {[%clk 0:03:01]} 6. Bc4 {[%clk 0:03:00]}  Nf6 {[%clk 0:03:00]} 7. dxe5 {[%clk 0:02:52]}  dxe5 {[%clk 0:02:57]} 8. fxe5 {[%clk 0:02:36]}  Bxf3 {[%clk 0:02:54]} 9. Qxf3 {[%clk 0:02:36]}  Qxe5 {[%clk 0:02:54]} 10. Bf4 {[%clk 0:02:36]}  Qd4 {[%clk 0:02:54]} 11. Bb3 {[%clk 0:02:36]}  Bb4 {[%clk 0:02:42]} 12. Bd2 {[%clk 0:02:31]}  Bxc3 {[%clk 0:02:41]} 13. Bxc3 {[%clk 0:02:06]}  Qxe4+ {[%clk 0:02:30]} 14. Qxe4+ {[%clk 0:02:05]}  Nxe4 {[%clk 0:02:30]} 15. Bxg7 {[%clk 0:02:05]}  Rg8 {[%clk 0:02:31]} 16. Bd4 {[%clk 0:02:05]}  Rxg2 {[%clk 0:02:32]} 17. O-O-O {[%clk 0:02:01]}  f5 {[%clk 0:02:15]} 18. Be6 {[%clk 0:01:59]}  Nf2 {[%clk 0:01:57]} 19. Rd2 {[%clk 0:01:46]}  Ke7 {[%clk 0:01:43]} 20. Bxf5 {[%clk 0:01:39]}  Nxh1 {[%clk 0:01:09]} 21. Rxg2 {[%clk 0:01:33]}  Na6 {[%clk 0:01:07]} 22. Rg1 {[%clk 0:01:32]}  Rf8 {[%clk 0:01:02]} 23. Bxh7 {[%clk 0:01:17]}  Nf2 {[%clk 0:00:59]} 24. Rg7+ {[%clk 0:00:48]}  Kd6 {[%clk 0:00:58]} 25. Rxb7 {[%clk 0:00:47]}  Ng4 {[%clk 0:00:57]} 26. Bd3 {[%clk 0:00:46]}  Nc5 {[%clk 0:00:53]} 27. Bxc5+ {[%clk 0:00:37]}  Kxc5 {[%clk 0:00:48]} 28. h4 {[%clk 0:00:32]}  Rh8 {[%clk 0:00:48]} 29. Rh7 {[%clk 0:00:25]}  Re8 {[%clk 0:00:38]} 30. Rxa7 {[%clk 0:00:18]}  Re1+ {[%clk 0:00:32]} 31. Kd2 {[%clk 0:00:17]}  Rh1 {[%clk 0:00:32]} 32. h5 {[%clk 0:00:17]}  Rh2+ {[%clk 0:00:33]} 33. Kc3 {[%clk 0:00:16]}  Ne3 {[%clk 0:00:33]} 34. Ra5+ {[%clk 0:00:16]}  Kb6 {[%clk 0:00:27]} 35. Rg5 {[%clk 0:00:15]}  Nd5+ {[%clk 0:00:27]} 36. Kb3 {[%clk 0:00:15]}  Nf4 {[%clk 0:00:27]} 37. Bg6 {[%clk 0:00:16]}  Rh3+ {[%clk 0:00:22]} 38. c3 {[%clk 0:00:15]}  Ne2 {[%clk 0:00:20]} 39. a4 {[%clk 0:00:15]}  Rh2 {[%clk 0:00:14]} 40. a5+ {[%clk 0:00:15]}  Kc7 {[%clk 0:00:14]} 41. Kc4 {[%clk 0:00:14]}  Nf4 {[%clk 0:00:13]} 42. b4 {[%clk 0:00:14]}  Nd5 {[%clk 0:00:12]} 43. Rxd5 {[%clk 0:00:13]}  cxd5+ {[%clk 0:00:13]} 44. Kxd5 {[%clk 0:00:12]}  Rg2 {[%clk 0:00:11]} 45. c4 {[%clk 0:00:12]}  Rg5+ {[%clk 0:00:11]} 46. Ke6 {[%clk 0:00:12]}  Rg4 {[%clk 0:00:11]} 47. b5 {[%clk 0:00:11]}  Rxc4 {[%clk 0:00:10]} 48. b6+ {[%clk 0:00:11]}  Kb7 {[%clk 0:00:10]} 49. h6 {[%clk 0:00:11]}  Rh4 {[%clk 0:00:10]} 50. h7 {[%clk 0:00:12]}  Ka6 {[%clk 0:00:06]} 51. Kd5 {[%clk 0:00:12]}  Rh6 {[%clk 0:00:06]} 52. Kc5 {[%clk 0:00:05]} 1-0


[Site "https://www.chess.com"]

[Event "Titled Tuesday Blitz January 10 Late 2023"]
[White "Boder, Jan"]
[Black "Haydon, David L"]
[WhiteFideId "16243226"]
[BlackFideId "415405"]
[WhiteElo "2294"]
[BlackElo "2253"]
[Result "0-1"]
[Round "05"]
[TimeControl "180+2"]
[Date "2023.01.10"]
[WhiteClock "0:00:01"]
[BlackClock "0:00:45"]

1. c4 {[%clk 0:00:00]}  e5 {[%clk 0:00:00]} 2. g3 {[%clk 0:03:00]}  Nf6 {[%clk 0:02:57]} 3. Bg2 {[%clk 0:03:00]}  d5 {[%clk 0:02:57]} 4. cxd5 {[%clk 0:03:00]}  Nxd5 {[%clk 0:02:58]} 5. Nc3 {[%clk 0:03:01]}  Nb6 {[%clk 0:02:58]} 6. Nf3 {[%clk 0:03:02]}  Nc6 {[%clk 0:02:58]} 7. O-O {[%clk 0:03:01]}  Be7 {[%clk 0:02:57]} 8. Rb1 {[%clk 0:03:02]}  O-O {[%clk 0:02:57]} 9. b4 {[%clk 0:03:02]}  f6 {[%clk 0:02:56]} 10. b5 {[%clk 0:03:02]}  Nd4 {[%clk 0:02:46]} 11. a4 {[%clk 0:03:02]}  a5 {[%clk 0:02:44]} 12. Nxd4 {[%clk 0:02:59]}  exd4 {[%clk 0:02:42]} 13. Qb3+ {[%clk 0:02:50]}  Kh8 {[%clk 0:02:42]} 14. Nd1 {[%clk 0:02:25]}  Qd6 {[%clk 0:02:40]} 15. d3 {[%clk 0:02:25]}  Be6 {[%clk 0:02:35]} 16. Qc2 {[%clk 0:02:24]}  Bd5 {[%clk 0:02:25]} 17. Bf4 {[%clk 0:02:24]}  Qe6 {[%clk 0:02:25]} 18. Nb2 {[%clk 0:02:24]}  Bxg2 {[%clk 0:02:22]} 19. Kxg2 {[%clk 0:02:08]}  Nd5 {[%clk 0:02:19]} 20. Bd2 {[%clk 0:02:09]}  Bb4 {[%clk 0:02:20]} 21. Nc4 {[%clk 0:00:40]}  Qxe2 {[%clk 0:01:56]} 22. Rbe1 {[%clk 0:00:27]}  Qg4 {[%clk 0:01:48]} 23. Re4 {[%clk 0:00:27]}  Qd7 {[%clk 0:01:47]} 24. Rxd4 {[%clk 0:00:25]}  c6 {[%clk 0:01:44]} 25. bxc6 {[%clk 0:00:21]}  Qxc6 {[%clk 0:01:28]} 26. f3 {[%clk 0:00:19]}  Rac8 {[%clk 0:01:27]} 27. Re1 {[%clk 0:00:18]}  Rfe8 {[%clk 0:01:24]} 28. Ree4 {[%clk 0:00:13]}  f5 {[%clk 0:01:20]} 29. Rxe8+ {[%clk 0:00:13]}  Rxe8 {[%clk 0:01:14]} 30. Bxb4 {[%clk 0:00:07]}  axb4 {[%clk 0:01:14]} 31. Qf2 {[%clk 0:00:08]}  Qc5 {[%clk 0:01:11]} 32. Rh4 {[%clk 0:00:07]}  Qc6 {[%clk 0:01:09]} 33. Rd4 {[%clk 0:00:05]}  Nc3 {[%clk 0:01:04]} 34. Rd6 {[%clk 0:00:05]}  Qxa4 {[%clk 0:01:02]} 35. Kh3 {[%clk 0:00:04]}  Qd1 {[%clk 0:00:57]} 36. Qd4 {[%clk 0:00:04]}  Qf1+ {[%clk 0:00:55]} 37. Kh4 {[%clk 0:00:04]}  Qg2 {[%clk 0:00:50]} 38. Rd8 {[%clk 0:00:04]}  Qxh2+ {[%clk 0:00:45]} 39. Kg5 {[%clk 0:00:02]}  Qh6+ {[%clk 0:00:44]} 40. Kxf5 {[%clk 0:00:02]}  Qe6+ {[%clk 0:00:45]} 41. Kf4 {[%clk 0:00:01]}  Ne2+ {[%clk 0:00:44]} 42. Kg5 {[%clk 0:00:01]}  h6+ {[%clk 0:00:45]} 0-1


[Site "https://www.chess.com"]